[Event "*** MasterClass Titled Tuesday Blitz"]
[Site "Chess.com"]
[Date "2017.12.05"]
[Round "1"]
[White "Lunaticx"]
[Black "oliver98"]
[Result "1/2-1/2"]
[WhiteElo "2712"]
[BlackElo "2281"]
[TimeControl "180+2"]
[EndTime "14:26:46 PST"]
[Termination "Game drawn - timeout vs insufficient material"]

1. e4 {[%clk 0:03:01.9]} 1... c5 {[%clk 0:03:00]} 2. Nf3 {[%clk 0:03:02.7]} 2...
e6 {[%clk 0:03:00.5]} 3. d4 {[%clk 0:03:04.1]} 3... cxd4 {[%clk 0:02:55.3]} 4.
Nxd4 {[%clk 0:03:06]} 4... Nc6 {[%clk 0:02:50.9]} 5. Nc3 {[%clk 0:03:02.4]} 5...
Qc7 {[%clk 0:02:50.8]} 6. Qd3 {[%clk 0:03:03.6]} 6... a6 {[%clk 0:02:50.3]} 7.
Nxc6 {[%clk 0:03:04.7]} 7... Qxc6 {[%clk 0:02:23.2]} 8. Qg3 {[%clk 0:03:06.2]}
8... d6 {[%clk 0:02:19.6]} 9. Bd3 {[%clk 0:03:06.4]} 9... Nf6 {[%clk 0:02:20.8]}
10. Bd2 {[%clk 0:03:05.7]} 10... Be7 {[%clk 0:02:20.4]} 11. Qxg7 {[%clk
0:03:03.1]} 11... Rg8 {[%clk 0:02:19.2]} 12. Qh6 {[%clk 0:03:04.6]} 12... Rxg2
{[%clk 0:02:20.8]} 13. O-O-O {[%clk 0:03:06.1]} 13... Rxf2 {[%clk 0:02:15.6]}
14. Rdf1 {[%clk 0:03:04.1]} 14... Rxf1+ {[%clk 0:02:02]} 15. Rxf1 {[%clk
0:03:05.8]} 15... Ng4 {[%clk 0:01:38.3]} 16. Qxh7 {[%clk 0:03:03.1]} 16... Ne5
{[%clk 0:01:39]} 17. Qg8+ {[%clk 0:03:04.2]} 17... Kd7 {[%clk 0:01:37.9]} 18.
Rxf7 {[%clk 0:03:00.1]} 18... Nxf7 {[%clk 0:01:37.8]} 19. Qxf7 {[%clk 0:03:02]}
19... Qc5 {[%clk 0:01:32.8]} 20. b4 {[%clk 0:03:01.8]} 20... Qe5 {[%clk
0:01:29.6]} 21. h4 {[%clk 0:02:52.8]} 21... b6 {[%clk 0:01:18.1]} 22. Kb1 {[%clk
0:02:37.8]} 22... Bb7 {[%clk 0:01:17.1]} 23. Na4 {[%clk 0:02:32]} 23... Qd4
{[%clk 0:01:10.9]} 24. Bc3 {[%clk 0:02:27.9]} 24... Qg1+ {[%clk 0:01:08.6]} 25.
Kb2 {[%clk 0:02:29]} 25... Rf8 {[%clk 0:01:10.2]} 26. Qg7 {[%clk 0:02:23.8]}
26... Qxg7 {[%clk 0:01:07.4]} 27. Bxg7 {[%clk 0:02:25.7]} 27... Rg8 {[%clk
0:01:09]} 28. Nxb6+ {[%clk 0:02:26.5]} 28... Kc7 {[%clk 0:01:06.3]} 29. Bd4
{[%clk 0:02:28.4]} 29... Bxh4 {[%clk 0:01:07.8]} 30. Na4 {[%clk 0:02:28.7]}
30... Rg4 {[%clk 0:01:03.3]} 31. Bb6+ {[%clk 0:02:25.4]} 31... Kd7 {[%clk
0:01:03.4]} 32. Nc3 {[%clk 0:02:18.8]} 32... Bf6 {[%clk 0:01:02.4]} 33. Kb3
{[%clk 0:02:19.9]} 33... Bxc3 {[%clk 0:01:00.5]} 34. Kxc3 {[%clk 0:02:21.8]}
34... Bxe4 {[%clk 0:01:01.8]} 35. Bxa6 {[%clk 0:02:22.9]} 35... Rg2 {[%clk
0:01:01.1]} 36. Bb5+ {[%clk 0:02:24]} 36... Ke7 {[%clk 0:01:01.2]} 37. Ba4
{[%clk 0:02:25.1]} 37... Bd5 {[%clk 0:01:00.6]} 38. a3 {[%clk 0:02:23.5]} 38...
Rg3+ {[%clk 0:00:54.1]} 39. Kb2 {[%clk 0:02:24.1]} 39... e5 {[%clk 0:00:55.6]}
40. Bb5 {[%clk 0:02:24.9]} 40... e4 {[%clk 0:00:51.4]} 41. a4 {[%clk 0:02:25.9]}
41... e3 {[%clk 0:00:43]} 42. a5 {[%clk 0:02:23.7]} 42... Ke6 {[%clk 0:00:30.3]}
43. a6 {[%clk 0:01:30.2]} 43... Ke5 {[%clk 0:00:29.8]} 44. a7 {[%clk 0:01:14]}
44... Ke4 {[%clk 0:00:25.7]} 45. Bc7 {[%clk 0:00:44.3]} 45... Rg7 {[%clk
0:00:20.7]} 46. Bb8 {[%clk 0:00:29.5]} 46... Kf3 {[%clk 0:00:19.7]} 47. Kc3
{[%clk 0:00:30.5]} 47... e2 {[%clk 0:00:18.5]} 48. Bxe2+ {[%clk 0:00:26.3]}
48... Kxe2 {[%clk 0:00:16.4]} 49. Kd4 {[%clk 0:00:27.3]} 49... Ba8 {[%clk
0:00:17.9]} 50. b5 {[%clk 0:00:23.7]} 50... Rb7 {[%clk 0:00:18]} 51. c4 {[%clk
0:00:22.9]} 51... Kf3 {[%clk 0:00:17.7]} 52. Kd3 {[%clk 0:00:17.3]} 52... Kg4
{[%clk 0:00:16.8]} 53. Kc3 {[%clk 0:00:17.6]} 53... Kf5 {[%clk 0:00:17.7]} 54.
Kb4 {[%clk 0:00:19.1]} 54... Ke6 {[%clk 0:00:19.3]} 55. Ka5 {[%clk 0:00:20.1]}
55... Kd7 {[%clk 0:00:20.5]} 56. b6 {[%clk 0:00:19.8]} 56... Kc6 {[%clk
0:00:21.4]} 57. Bc7 {[%clk 0:00:21]} 57... d5 {[%clk 0:00:21.7]} 58. cxd5+
{[%clk 0:00:19.7]} 58... Kxd5 {[%clk 0:00:23.6]} 59. Kb5 {[%clk 0:00:19.9]}
59... Ke6 {[%clk 0:00:24]} 60. Kc5 {[%clk 0:00:19.9]} 60... Kd7 {[%clk 0:00:23]}
61. Kc4 {[%clk 0:00:18.3]} 61... Kc6 {[%clk 0:00:20.6]} 62. Kd4 {[%clk
0:00:18.5]} 62... Kd7 {[%clk 0:00:18.5]} 63. Ke5 {[%clk 0:00:18.4]} 63... Kc6
{[%clk 0:00:14]} 64. Ke6 {[%clk 0:00:16.5]} 64... Rxc7 {[%clk 0:00:10.5]} 65.
bxc7 {[%clk 0:00:15.5]} 65... Kxc7 {[%clk 0:00:11.1]} 1/2-1/2

[Event "*** MasterClass Titled Tuesday Blitz"]
[Site "Chess.com"]
[Date "2017.12.05"]
[Round "2"]
[White "michaelk123"]
[Black "ChessChronicles123"]
[Result "1-0"]
[WhiteElo "2293"]
[BlackElo "1919"]
[TimeControl "180+2"]
[EndTime "14:30:04 PST"]
[Termination "michaelk123 won by resignation"]

1. d4 {[%clk 0:02:48]} 1... d5 {[%clk 0:03:00]} 2. Bf4 {[%clk 0:02:47.4]} 2...
Nf6 {[%clk 0:02:58.2]} 3. e3 {[%clk 0:02:46]} 3... g6 {[%clk 0:02:57.3]} 4. Nc3
{[%clk 0:02:44.7]} 4... Bg7 {[%clk 0:02:57.8]} 5. h4 {[%clk 0:02:45.1]} 5... c6
{[%clk 0:02:57.3]} 6. Be2 {[%clk 0:02:37.5]} 6... O-O {[%clk 0:02:57.7]} 7. h5
{[%clk 0:02:37.3]} 7... e6 {[%clk 0:02:57.9]} 8. h6 {[%clk 0:02:32.4]} 8... Bh8
{[%clk 0:02:58.2]} 9. Nf3 {[%clk 0:02:33.1]} 9... Nbd7 {[%clk 0:02:53.3]} 10.
Ne5 {[%clk 0:02:18.5]} 10... b6 {[%clk 0:02:55.2]} 11. Nxc6 {[%clk 0:02:18.3]}
11... Qe8 {[%clk 0:02:53.3]} 12. Bd6 {[%clk 0:02:18]} 12... Bb7 {[%clk
0:02:52.4]} 13. Ne7+ {[%clk 0:02:18.1]} 1-0

[Event "*** MasterClass Titled Tuesday Blitz"]
[Site "Chess.com"]
[Date "2017.12.05"]
[Round "2"]
[White "Colombiano07"]
[Black "pi_mal_auge"]
[Result "1-0"]
[WhiteElo "2201"]
[BlackElo "1616"]
[TimeControl "180+2"]
[EndTime "14:30:13 PST"]
[Termination "Colombiano07 won by resignation"]

1. e4 {[%clk 0:03:01.9]} 1... Nf6 {[%clk 0:02:59.1]} 2. e5 {[%clk 0:03:02.3]}
2... Nd5 {[%clk 0:03:00]} 3. d4 {[%clk 0:03:02.6]} 3... d6 {[%clk 0:03:00.6]} 4.
c4 {[%clk 0:03:02.9]} 4... Nb6 {[%clk 0:03:01.3]} 5. exd6 {[%clk 0:03:04.5]}
5... cxd6 {[%clk 0:03:01.8]} 6. Nc3 {[%clk 0:03:04.6]} 6... g6 {[%clk 0:03:03]}
7. Be3 {[%clk 0:03:04.9]} 7... Bg7 {[%clk 0:03:03.8]} 8. Rc1 {[%clk 0:03:06.4]}
8... O-O {[%clk 0:03:04.5]} 9. b3 {[%clk 0:03:06.7]} 9... Nc6 {[%clk 0:03:04.6]}
10. Nf3 {[%clk 0:03:05.2]} 10... Bg4 {[%clk 0:03:04.6]} 11. d5 {[%clk
0:03:04.1]} 11... Ne5 {[%clk 0:02:59.6]} 12. Be2 {[%clk 0:03:02.2]} 12... Bxf3
{[%clk 0:02:55.9]} 13. Bxf3 {[%clk 0:03:04.1]} 13... Rc8 {[%clk 0:02:56]} 14.
Be2 {[%clk 0:03:02]} 14... f5 {[%clk 0:02:55.8]} 15. f4 {[%clk 0:02:59.3]} 15...
Nf7 {[%clk 0:02:54.9]} 16. Nb5 {[%clk 0:02:58]} 16... a6 {[%clk 0:02:52.3]} 17.
Nd4 {[%clk 0:02:58.1]} 17... Re8 {[%clk 0:02:29.9]} 18. Ne6 {[%clk 0:02:57.8]}
1-0

[Event "*** MasterClass Titled Tuesday Blitz"]
[Site "Chess.com"]
[Date "2017.12.05"]
[Round "2"]
[White "dawtonlms"]
[Black "Sheik777"]
[Result "1-0"]
[WhiteElo "2244"]
[BlackElo "1769"]
[TimeControl "180+2"]
[EndTime "14:31:26 PST"]
[Termination "dawtonlms won by resignation"]

1. e4 {[%clk 0:03:01.9]} 1... c6 {[%clk 0:02:52.3]} 2. d4 {[%clk 0:03:01.9]}
2... d5 {[%clk 0:02:50.1]} 3. exd5 {[%clk 0:03:03.8]} 3... cxd5 {[%clk
0:02:48.8]} 4. c4 {[%clk 0:03:05.7]} 4... Nf6 {[%clk 0:02:45.3]} 5. Nc3 {[%clk
0:03:06.3]} 5... Nc6 {[%clk 0:02:42.2]} 6. Bg5 {[%clk 0:03:06.9]} 6... dxc4
{[%clk 0:02:39.1]} 7. d5 {[%clk 0:03:06.2]} 7... Ne5 {[%clk 0:02:33.5]} 8. Qd4
{[%clk 0:03:05.4]} 8... h6 {[%clk 0:02:28.5]} 9. Qxe5 {[%clk 0:02:57.3]} 9...
hxg5 {[%clk 0:02:26]} 10. Bxc4 {[%clk 0:02:58.3]} 10... Qb6 {[%clk 0:02:17.4]}
11. O-O-O {[%clk 0:02:37.7]} 11... Ng4 {[%clk 0:02:08]} 12. Bb5+ {[%clk
0:02:26.6]} 12... Bd7 {[%clk 0:01:43]} 13. Bxd7+ {[%clk 0:02:26.8]} 13... Kxd7
{[%clk 0:01:40.8]} 14. Qf5+ {[%clk 0:02:27.6]} 1-0

[Event "*** MasterClass Titled Tuesday Blitz"]
[Site "Chess.com"]
[Date "2017.12.05"]
[Round "2"]
[White "MasterBlitz83"]
[Black "d4xaoc"]
[Result "1-0"]
[WhiteElo "1502"]
[BlackElo "1208"]
[TimeControl "180+2"]
[EndTime "14:31:55 PST"]
[Termination "MasterBlitz83 won by checkmate"]

1. f3 {[%clk 0:02:56.6]} 1... e6 {[%clk 0:03:00.6]} 2. Kf2 {[%clk 0:02:55.3]}
2... Qh4+ {[%clk 0:03:00.3]} 3. g3 {[%clk 0:02:53.6]} 3... Qd8 {[%clk
0:03:00.9]} 4. Bg2 {[%clk 0:02:55]} 4... Bc5+ {[%clk 0:03:00.9]} 5. e3 {[%clk
0:02:54.3]} 5... Nf6 {[%clk 0:03:00.3]} 6. Nc3 {[%clk 0:02:53.7]} 6... O-O
{[%clk 0:02:59.6]} 7. d4 {[%clk 0:02:53.4]} 7... Bb6 {[%clk 0:03:00.2]} 8. Nge2
{[%clk 0:02:52.6]} 8... d6 {[%clk 0:02:58.5]} 9. Re1 {[%clk 0:02:51.8]} 9... c5
{[%clk 0:02:57.8]} 10. Kg1 {[%clk 0:02:51.2]} 10... cxd4 {[%clk 0:02:57.7]} 11.
exd4 {[%clk 0:02:52.2]} 11... Ba5 {[%clk 0:02:57.2]} 12. Bd2 {[%clk 0:02:51.7]}
12... Bb6 {[%clk 0:02:56.5]} 13. Kh1 {[%clk 0:02:51.7]} 13... a5 {[%clk
0:02:46.3]} 14. f4 {[%clk 0:02:51.9]} 14... Ng4 {[%clk 0:02:39.3]} 15. Rf1
{[%clk 0:02:44.6]} 15... e5 {[%clk 0:02:38.3]} 16. dxe5 {[%clk 0:02:42.4]} 16...
Nf2+ {[%clk 0:02:37.2]} 17. Rxf2 {[%clk 0:02:42.2]} 17... Bxf2 {[%clk
0:02:37.6]} 18. Qf1 {[%clk 0:02:38.6]} 18... Bc5 {[%clk 0:02:36.7]} 19. Na4
{[%clk 0:02:35.5]} 19... b5 {[%clk 0:02:28.6]} 20. Nxc5 {[%clk 0:02:35.4]} 20...
dxc5 {[%clk 0:02:29.2]} 21. Rd1 {[%clk 0:02:35.4]} 21... Ra7 {[%clk 0:02:29.3]}
22. f5 {[%clk 0:02:30.8]} 22... Qb6 {[%clk 0:02:25.2]} 23. f6 {[%clk 0:02:30.1]}
23... g6 {[%clk 0:02:21]} 24. Qf4 {[%clk 0:02:30.1]} 24... Nc6 {[%clk
0:02:20.5]} 25. Qh6 {[%clk 0:02:30.4]} 25... Nxe5 {[%clk 0:02:00.5]} 26. Qg7#
{[%clk 0:02:27.4]} 1-0

[Event "*** MasterClass Titled Tuesday Blitz"]
[Site "Chess.com"]
[Date "2017.12.05"]
[Round "2"]
[White "Jadeit90"]
[Black "robbykevlishvili"]
[Result "0-1"]
[WhiteElo "2331"]
[BlackElo "2386"]
[TimeControl "180+2"]
[EndTime "14:32:44 PST"]
[Termination "robbykevlishvili won by resignation"]

1. g3 {[%clk 0:03:01.9]} 1... Nf6 {[%clk 0:02:59.4]} 2. Bg2 {[%clk 0:03:03.8]}
2... d5 {[%clk 0:02:57]} 3. c4 {[%clk 0:03:05.7]} 3... c6 {[%clk 0:02:56]} 4.
cxd5 {[%clk 0:03:07.6]} 4... cxd5 {[%clk 0:02:56.8]} 5. Nf3 {[%clk 0:03:08.1]}
5... Nc6 {[%clk 0:02:58.3]} 6. O-O {[%clk 0:03:06.2]} 6... e5 {[%clk 0:02:55.9]}
7. d4 {[%clk 0:03:07.1]} 7... e4 {[%clk 0:02:55.1]} 8. Ne5 {[%clk 0:03:06.7]}
8... Bd6 {[%clk 0:02:56.4]} 9. Nxc6 {[%clk 0:03:07.3]} 9... bxc6 {[%clk
0:02:58.3]} 10. Nc3 {[%clk 0:03:09.2]} 10... O-O {[%clk 0:02:57.2]} 11. a3
{[%clk 0:03:08.2]} 11... Rb8 {[%clk 0:02:43.9]} 12. Na4 {[%clk 0:03:07.5]} 12...
Ba6 {[%clk 0:02:36.8]} 13. b4 {[%clk 0:03:05.2]} 13... Bc4 {[%clk 0:02:29.8]}
14. Nc5 {[%clk 0:03:06.1]} 14... a5 {[%clk 0:02:27.9]} 15. Bd2 {[%clk
0:03:07.2]} 15... axb4 {[%clk 0:02:24.7]} 16. Bxb4 {[%clk 0:03:09.1]} 16... h5
{[%clk 0:02:15.2]} 17. Qd2 {[%clk 0:03:06.8]} 17... h4 {[%clk 0:02:11]} 18. Rfc1
{[%clk 0:03:07.8]} 18... hxg3 {[%clk 0:02:07.8]} 19. hxg3 {[%clk 0:03:09.7]}
19... Ng4 {[%clk 0:02:06.6]} 20. Bh3 {[%clk 0:03:08]} 20... e3 {[%clk
0:02:04.4]} 21. fxe3 {[%clk 0:02:58.8]} 21... Bxg3 {[%clk 0:01:58.1]} 22. Kg2
{[%clk 0:02:47.9]} 22... Qh4 {[%clk 0:01:51.7]} 23. Nd7 {[%clk 0:02:24.5]} 23...
Bf2 {[%clk 0:01:42.6]} 24. Bxg4 {[%clk 0:02:18.1]} 24... Qg3+ {[%clk 0:01:39.1]}
25. Kh1 {[%clk 0:02:19]} 25... Bxe3 {[%clk 0:01:22.7]} 26. Qe1 {[%clk
0:02:16.9]} 26... Qxg4 {[%clk 0:01:20]} 0-1

[Event "*** MasterClass Titled Tuesday Blitz"]
[Site "Chess.com"]
[Date "2017.12.05"]
[Round "2"]
[White "nicegg"]
[Black "JusticeBot"]
[Result "0-1"]
[WhiteElo "1984"]
[BlackElo "2548"]
[TimeControl "180+2"]
[EndTime "14:33:03 PST"]
[Termination "JusticeBot won by resignation"]

1. e4 {[%clk 0:03:01.9]} 1... e5 {[%clk 0:02:48.7]} 2. f4 {[%clk 0:03:02.2]}
2... Bc5 {[%clk 0:02:48]} 3. Qf3 {[%clk 0:03:02.9]} 3... d6 {[%clk 0:02:47.7]}
4. f5 {[%clk 0:02:58.8]} 4... Nc6 {[%clk 0:02:48.9]} 5. c3 {[%clk 0:02:59.5]}
5... Nf6 {[%clk 0:02:49.4]} 6. d3 {[%clk 0:02:50.4]} 6... d5 {[%clk 0:02:50.3]}
7. g4 {[%clk 0:02:49.8]} 7... dxe4 {[%clk 0:02:51]} 8. dxe4 {[%clk 0:02:50.8]}
8... h5 {[%clk 0:02:45.8]} 9. g5 {[%clk 0:02:51.1]} 9... Ng4 {[%clk 0:02:47.3]}
10. Nh3 {[%clk 0:02:45.5]} 10... g6 {[%clk 0:02:40.6]} 11. fxg6 {[%clk
0:02:41.2]} 11... fxg6 {[%clk 0:02:42.5]} 12. Bc4 {[%clk 0:02:42.1]} 12... Rf8
{[%clk 0:02:44]} 13. Qe2 {[%clk 0:02:35.2]} 13... Nf2 {[%clk 0:02:19.1]} 14. Rf1
{[%clk 0:02:22.8]} 14... Bg4 {[%clk 0:02:04.1]} 15. Nxf2 {[%clk 0:01:52.8]}
15... Bxe2 {[%clk 0:01:34.6]} 16. Kxe2 {[%clk 0:01:53.6]} 16... Nd4+ {[%clk
0:01:24.6]} 17. cxd4 {[%clk 0:01:45.8]} 17... Qxd4 {[%clk 0:01:26.5]} 18. Bb5+
{[%clk 0:01:37.3]} 18... c6 {[%clk 0:01:27.2]} 19. Nd3 {[%clk 0:01:36.6]} 19...
Qxe4+ {[%clk 0:01:08.3]} 0-1

[Event "*** MasterClass Titled Tuesday Blitz"]
[Site "Chess.com"]
[Date "2017.12.05"]
[Round "2"]
[White "zzzombie"]
[Black "roncataroja"]
[Result "0-1"]
[WhiteElo "1184"]
[BlackElo "1412"]
[TimeControl "180+2"]
[EndTime "14:33:14 PST"]
[Termination "roncataroja won by resignation"]

1. e4 {[%clk 0:03:01.9]} 1... c6 {[%clk 0:03:00.4]} 2. d4 {[%clk 0:02:58.8]}
2... d5 {[%clk 0:03:01.2]} 3. exd5 {[%clk 0:02:59.5]} 3... cxd5 {[%clk
0:03:01.1]} 4. Nf3 {[%clk 0:03:00.2]} 4... Nc6 {[%clk 0:03:01.7]} 5. c4 {[%clk
0:03:00.6]} 5... dxc4 {[%clk 0:03:01.8]} 6. Bxc4 {[%clk 0:03:00.9]} 6... e6
{[%clk 0:03:02.1]} 7. d5 {[%clk 0:02:59.8]} 7... exd5 {[%clk 0:03:02.5]} 8. Bxd5
{[%clk 0:03:00.4]} 8... Nf6 {[%clk 0:03:00.7]} 9. Bxf7+ {[%clk 0:03:00.7]} 9...
Kxf7 {[%clk 0:03:00.4]} 10. Qb3+ {[%clk 0:03:01.4]} 10... Be6 {[%clk 0:03:00.3]}
11. Qxb7+ {[%clk 0:02:57.6]} 11... Ne7 {[%clk 0:03:01]} 12. Ne5+ {[%clk
0:02:55.6]} 12... Kg8 {[%clk 0:02:59.5]} 13. Bg5 {[%clk 0:02:52.8]} 13... Bd5
{[%clk 0:02:59.8]} 14. Qa6 {[%clk 0:02:42]} 14... Qc7 {[%clk 0:02:48.7]} 15.
Bxf6 {[%clk 0:02:33.9]} 15... Qc1+ {[%clk 0:02:47.1]} 16. Ke2 {[%clk 0:02:33.1]}
16... Qxb2+ {[%clk 0:02:45.7]} 17. Nd2 {[%clk 0:02:32.6]} 17... gxf6 {[%clk
0:02:45.5]} 18. Qxf6 {[%clk 0:02:23.3]} 18... Qb5+ {[%clk 0:02:45.1]} 19. Nd3
{[%clk 0:02:12.7]} 19... Re8 {[%clk 0:02:39.5]} 20. Qg5+ {[%clk 0:02:10.8]}
20... Bg7 {[%clk 0:02:39.3]} 21. Rhe1 {[%clk 0:02:04]} 21... Nf5+ {[%clk
0:02:36.1]} 22. Kf1 {[%clk 0:01:57.5]} 22... Qxd3+ {[%clk 0:02:36.4]} 23. Kg1
{[%clk 0:01:58.2]} 23... Rxe1+ {[%clk 0:02:25.5]} 24. Rxe1 {[%clk 0:01:58.1]}
24... Qxd2 {[%clk 0:02:22.6]} 25. Re8+ {[%clk 0:01:57.4]} 25... Kf7 {[%clk
0:02:22.8]} 26. Qxf5+ {[%clk 0:01:46.5]} 26... Kxe8 {[%clk 0:02:14.5]} 27. Qc8+
{[%clk 0:01:45.9]} 27... Kf7 {[%clk 0:02:13.1]} 28. Qd7+ {[%clk 0:01:46.8]}
28... Kg6 {[%clk 0:02:12.8]} 29. Qg4+ {[%clk 0:01:46.1]} 29... Qg5 {[%clk
0:02:13.2]} 30. Qxg5+ {[%clk 0:01:37.4]} 30... Kxg5 {[%clk 0:02:13.4]} 31. h4+
{[%clk 0:01:39.3]} 31... Kxh4 {[%clk 0:02:13.9]} 32. Kh2 {[%clk 0:01:41.2]}
32... Rf8 {[%clk 0:02:11.6]} 33. g3+ {[%clk 0:01:41.8]} 33... Kg4 {[%clk
0:02:12]} 34. f4 {[%clk 0:01:43.7]} 34... h5 {[%clk 0:02:09.6]} 0-1

[Event "*** MasterClass Titled Tuesday Blitz"]
[Site "Chess.com"]
[Date "2017.12.05"]
[Round "2"]
[White "kikydu96"]
[Black "1e41-0"]
[Result "0-1"]
[WhiteElo "2364"]
[BlackElo "2356"]
[TimeControl "180+2"]
[EndTime "14:33:20 PST"]
[Termination "1e41-0 won by resignation"]

1. e4 {[%clk 0:03:01.9]} 1... c5 {[%clk 0:03:00.1]} 2. Nc3 {[%clk 0:03:02.1]}
2... e6 {[%clk 0:03:01.2]} 3. f4 {[%clk 0:02:57]} 3... d5 {[%clk 0:03:02.1]} 4.
exd5 {[%clk 0:02:57.5]} 4... exd5 {[%clk 0:03:04]} 5. Nf3 {[%clk 0:02:57]} 5...
Nf6 {[%clk 0:03:02.8]} 6. d4 {[%clk 0:02:57.6]} 6... cxd4 {[%clk 0:03:03.6]} 7.
Nxd4 {[%clk 0:02:57.1]} 7... Bc5 {[%clk 0:02:57.5]} 8. Bb5+ {[%clk 0:02:54.6]}
8... Bd7 {[%clk 0:02:58.5]} 9. Bxd7+ {[%clk 0:02:53.3]} 9... Qxd7 {[%clk
0:03:00.4]} 10. O-O {[%clk 0:02:53.2]} 10... O-O {[%clk 0:03:01.4]} 11. Kh1
{[%clk 0:02:53.2]} 11... Nc6 {[%clk 0:03:00.9]} 12. Be3 {[%clk 0:02:46.2]} 12...
Rfe8 {[%clk 0:02:35.8]} 13. Bg1 {[%clk 0:02:46.6]} 13... Bb6 {[%clk 0:02:28]}
14. Na4 {[%clk 0:02:36.4]} 14... Bxd4 {[%clk 0:02:18.2]} 15. Bxd4 {[%clk
0:02:34.4]} 15... Nxd4 {[%clk 0:02:16.5]} 16. Qxd4 {[%clk 0:02:36.3]} 16... Re4
{[%clk 0:02:15.9]} 17. Qd3 {[%clk 0:02:15.4]} 17... Qxa4 {[%clk 0:02:14.4]} 18.
c3 {[%clk 0:02:11.9]} 18... Rae8 {[%clk 0:02:13.2]} 19. b3 {[%clk 0:02:09.2]}
19... Qc6 {[%clk 0:02:13.4]} 20. Rac1 {[%clk 0:02:09.5]} 20... h6 {[%clk
0:02:14.3]} 21. a4 {[%clk 0:02:04.8]} 21... Qb6 {[%clk 0:02:00.6]} 22. b4 {[%clk
0:02:04.2]} 22... Ng4 {[%clk 0:01:59.2]} 23. Qg3 {[%clk 0:02:00.3]} 23... h5
{[%clk 0:01:54.4]} 24. h3 {[%clk 0:02:00.7]} 24... Ne3 {[%clk 0:01:47.8]} 25.
Rf3 {[%clk 0:02:01.8]} 25... Nf5 {[%clk 0:01:47.6]} 26. Qg5 {[%clk 0:02:00.1]}
26... Qg6 {[%clk 0:01:48.2]} 27. Rd3 {[%clk 0:01:53.4]} 27... Qxg5 {[%clk
0:01:37.2]} 28. fxg5 {[%clk 0:01:54]} 28... Re1+ {[%clk 0:01:37.8]} 29. Rxe1
{[%clk 0:01:54.3]} 29... Rxe1+ {[%clk 0:01:39.7]} 30. Kh2 {[%clk 0:01:56.1]}
30... h4 {[%clk 0:01:38.7]} 31. g4 {[%clk 0:01:48.8]} 31... hxg3+ {[%clk
0:01:39.1]} 32. Kg2 {[%clk 0:01:50.1]} 32... Re2+ {[%clk 0:01:39.6]} 33. Kf3
{[%clk 0:01:50.5]} 33... Rf2+ {[%clk 0:01:39.7]} 34. Kg4 {[%clk 0:01:51.7]}
34... g2 {[%clk 0:01:36.7]} 0-1

[Event "*** MasterClass Titled Tuesday Blitz"]
[Site "Chess.com"]
[Date "2017.12.05"]
[Round "2"]
[White "lucasmito"]
[Black "Abdodi"]
[Result "1-0"]
[WhiteElo "2195"]
[BlackElo "2108"]
[TimeControl "180+2"]
[EndTime "14:33:22 PST"]
[Termination "lucasmito won by resignation"]

1. e4 {[%clk 0:03:01.9]} 1... c6 {[%clk 0:02:24.1]} 2. d4 {[%clk 0:02:44.6]}
2... d5 {[%clk 0:02:26]} 3. Nc3 {[%clk 0:02:45.3]} 3... dxe4 {[%clk 0:02:24.3]}
4. Nxe4 {[%clk 0:02:47.2]} 4... Bf5 {[%clk 0:02:24.3]} 5. Ng3 {[%clk 0:02:48.8]}
5... Bg6 {[%clk 0:02:25.2]} 6. h4 {[%clk 0:02:50.4]} 6... h6 {[%clk 0:02:18.7]}
7. h5 {[%clk 0:02:51.8]} 7... Bh7 {[%clk 0:02:18.7]} 8. Nf3 {[%clk 0:02:53.3]}
8... Nd7 {[%clk 0:02:18.8]} 9. Bd3 {[%clk 0:02:54.7]} 9... Bxd3 {[%clk
0:02:18.7]} 10. Qxd3 {[%clk 0:02:56.6]} 10... Ngf6 {[%clk 0:02:20.5]} 11. Bd2
{[%clk 0:02:56.6]} 11... e6 {[%clk 0:02:21.6]} 12. O-O-O {[%clk 0:02:57.1]}
12... Qc7 {[%clk 0:02:22.6]} 13. Kb1 {[%clk 0:02:56.4]} 13... Bd6 {[%clk
0:02:22.1]} 14. Ne4 {[%clk 0:02:57.6]} 14... Nxe4 {[%clk 0:02:22.4]} 15. Qxe4
{[%clk 0:02:59.5]} 15... Nf6 {[%clk 0:02:22.8]} 16. Qe2 {[%clk 0:02:59.7]} 16...
O-O-O {[%clk 0:02:23.8]} 17. c4 {[%clk 0:03:00.2]} 17... Bf4 {[%clk 0:02:19.1]}
18. Bc3 {[%clk 0:03:00.8]} 18... Rhe8 {[%clk 0:02:12.5]} 19. Ne5 {[%clk
0:02:59.4]} 19... Bxe5 {[%clk 0:02:11.9]} 20. dxe5 {[%clk 0:03:01.3]} 20... Nd7
{[%clk 0:02:05]} 21. Rd6 {[%clk 0:03:01.7]} 21... Nc5 {[%clk 0:01:55.9]} 22.
Rhd1 {[%clk 0:02:56.6]} 22... Na4 {[%clk 0:01:54.8]} 23. Qc2 {[%clk 0:02:30.1]}
23... Nb6 {[%clk 0:01:50.6]} 24. Ba5 {[%clk 0:02:18.1]} 24... Qe7 {[%clk
0:01:47.5]} 25. c5 {[%clk 0:02:17.2]} 25... Rxd6 {[%clk 0:01:26.3]} 26. exd6
{[%clk 0:02:12.9]} 26... Qg5 {[%clk 0:01:25.9]} 27. cxb6 {[%clk 0:02:12.5]}
27... Qxa5 {[%clk 0:01:26.2]} 28. d7+ {[%clk 0:02:13.2]} 28... Kd8 {[%clk
0:01:24.8]} 29. dxe8=Q+ {[%clk 0:02:11.8]} 29... Kxe8 {[%clk 0:01:26.7]} 30.
bxa7 {[%clk 0:02:11.8]} 30... Qxa7 {[%clk 0:01:17]} 31. Qd2 {[%clk 0:02:10.3]}
31... b5 {[%clk 0:01:12.2]} 1-0